fUSD/lending_fUSD_20251217
["ID","MTS","AMOUNT","RATE_DAILY","PERIOD"]
[398928661,1766002239422,-500.0,0.00013841,2]
[398928662,1766002239431,-500.0,0.00013841,2]
[398928663,1766002239441,-500.0,0.00013841,2]
[398928664,1766002239450,-500.0,0.00013841,2]
[398928665,1766002239459,-500.0,0.00013841,2]
[398928666,1766002239469,-500.0,0.00013841,2]
[398928667,1766002239478,-500.0,0.00013841,2]
[398928668,1766002239489,-500.0,0.00013841,2]
[398928669,1766002239499,-151.0,0.00013841,2]
[398928670,1766002239508,-500.0,0.00013841,2]
[398928671,1766002239517,-151.0,0.00013841,2]
[398928672,1766002239527,-500.0,0.00013841,2]
[398928673,1766002239535,-151.0,0.00013841,2]
[398928674,1766002239545,-500.0,0.00013841,2]
[398928675,1766002239554,-151.0,0.00013841,2]
[398928676,1766002239563,-151.0,0.00013841,2]
[398928677,1766002239572,-500.0,0.00013841,2]
[398928678,1766002239582,-151.0,0.00013841,2]
[398928679,1766002239591,-151.0,0.00013841,2]
[398928680,1766002239600,-151.0,0.00013841,2]
[398928681,1766002239609,-151.0,0.00013841,2]
[398928682,1766002239618,-151.0,0.00013841,2]
[398928683,1766002239628,-151.0,0.00013841,2]
[398928684,1766002239637,-151.0,0.00013841,2]
[398928685,1766002239647,-151.0,0.00013841,2]
[398928686,1766002239656,-151.0,0.00013841,2]
[398928687,1766002239665,-151.0,0.00013841,2]
[398928688,1766002239674,-151.0,0.00013841,2]
[398928689,1766002239684,-151.0,0.00013841,2]
[398928690,1766002239693,-151.0,0.00013841,2]
[398928691,1766002239702,-151.0,0.00013841,2]
[398928692,1766002239713,-151.0,0.00013841,2]
[398928693,1766002239723,-151.0,0.00013841,2]
[398928694,1766002239733,-151.0,0.00013841,2]
[398928695,1766002239742,-151.0,0.00013841,2]
[398928696,1766002239751,-151.0,0.00013841,2]
[398928697,1766002239761,-200.0,0.00013841,2]
[398928698,1766002239770,-151.0,0.00013841,2]
[398928699,1766002239779,-151.0,0.00013841,2]
[398928700,1766002239788,-151.0,0.00013841,2]
[398928701,1766002239798,-151.0,0.00013841,2]
[398928702,1766002239807,-151.0,0.00013841,2]
[398928703,1766002239816,-151.0,0.00013841,2]
[398928704,1766002239825,-151.0,0.00013841,2]
[398928705,1766002239835,-500.0,0.00013847,2]
[398928706,1766002239844,-500.0,0.00013847,2]
[398928707,1766002239853,-263.63401332,0.00013847,2]
[398928708,1766002239862,-500.0,0.00013847,2]
[398928709,1766002239872,-500.0,0.00013847,2]
[398928710,1766002239882,-150.0,0.00013847,2]
[398928711,1766002239891,-150.0,0.00013847,2]
[398928712,1766002239901,-200.97555689,0.00013847,2]
[398928714,1766002239910,-150.0,0.00013847,2]
[398928715,1766002239919,-500.0,0.00013849,2]
[398928716,1766002239928,-150.0,0.00013849,2]
[398928717,1766002239938,-500.0,0.00013849,2]
[398928718,1766002239947,-500.0,0.00013849,2]
[398928719,1766002239957,-500.0,0.00013849,2]
[398928720,1766002239966,-500.0,0.00013849,2]
[398928721,1766002239975,-500.0,0.00013849,2]
[398928722,1766002239984,-500.0,0.00013849,2]
[398928723,1766002239994,-500.0,0.00013849,2]
[398928724,1766002240003,-500.0,0.00013849,2]
[398928725,1766002240012,-484.62942305,0.00013849,2]
[398928726,1766002240022,-500.0,0.00013849,2]
[398928727,1766002240032,-500.0,0.00013849,2]
[398928728,1766002240041,-500.0,0.00013849,2]
[398928729,1766002240051,-500.0,0.00013849,2]
[398928730,1766002240060,-500.0,0.00013849,2]
[398928731,1766002240070,-500.0,0.00013849,2]
[398928732,1766002240079,-500.0,0.00013849,2]
[398928733,1766002240089,-500.0,0.00013849,2]
[398928734,1766002240098,-500.0,0.00013849,2]
[398928735,1766002240107,-500.0,0.00013849,2]
[398928736,1766002240116,-500.0,0.00013849,2]
[398928737,1766002240125,-500.0,0.00013849,2]
[398928738,1766002240135,-500.0,0.00013849,2]
[398928739,1766002240145,-500.0,0.00013849,2]
[398928740,1766002240154,-500.0,0.00013849,2]
[398928741,1766002240163,-500.0,0.00013849,2]
[398928742,1766002240173,-500.0,0.00013849,2]
[398928743,1766002240182,-500.0,0.00013849,2]
[398928744,1766002240191,-500.0,0.00013849,2]
[398928745,1766002240200,-500.0,0.00013849,2]
[398928746,1766002240210,-500.0,0.00013849,2]
[398928747,1766002240220,-500.0,0.00013849,2]
[398928748,1766002240229,-500.0,0.00013849,2]
[398928749,1766002240239,-500.0,0.00013849,2]
[398928750,1766002240248,-500.0,0.00013849,2]
[398928751,1766002240257,-500.0,0.00013849,2]
[398928752,1766002240267,-500.0,0.00013849,2]
[398928753,1766002240277,-500.0,0.00013849,2]
[398928754,1766002240287,-500.0,0.00013849,2]
[398928755,1766002240297,-500.0,0.00013849,2]
[398928756,1766002240306,-500.0,0.00013849,2]
[398928757,1766002240316,-500.0,0.00013849,2]
[398928758,1766002240325,-500.0,0.00013849,2]
[398928759,1766002240335,-500.0,0.00013849,2]
[398928761,1766002240345,-500.0,0.00013849,2]
[398928763,1766002240355,-500.0,0.00013849,2]
[398928765,1766002240364,-500.0,0.00013849,2]
[398928767,1766002240373,-500.0,0.00013849,2]
[398928769,1766002240382,-520.67260897,0.00013849,2]
[398928771,1766002240392,-500.0,0.00013849,2]
[398928773,1766002240404,-500.0,0.00013849,2]
[398928775,1766002240414,-500.0,0.00013849,2]
[398928777,1766002240423,-500.0,0.00013849,2]
[398928779,1766002240432,-500.0,0.00013849,2]
[398928781,1766002240442,-500.0,0.00013849,2]
[398928783,1766002240452,-500.0,0.00013849,2]
[398928785,1766002240461,-500.0,0.00013849,2]
[398928787,1766002240472,-530.90558396,0.00013849,2]
[398928789,1766002240482,-500.0,0.00013849,2]
[398928791,1766002240491,-500.0,0.00013849,2]
[398928793,1766002240501,-500.0,0.00013849,2]
[398928795,1766002240510,-500.0,0.00013849,2]
[398928797,1766002240520,-500.0,0.00013849,2]
[398928799,1766002240529,-500.0,0.00013849,2]
[398928801,1766002240538,-500.0,0.00013849,2]
[398928802,1766002240552,-500.68934794,0.00013849,2]
[398928803,1766002240562,-500.0,0.00013849,2]
[398928805,1766002240573,-500.0,0.00013849,2]
[398928807,1766002240583,-500.0,0.00013849,2]
[398928809,1766002240592,-500.0,0.00013849,2]
[398928810,1766002240601,-500.0,0.00013849,2]
[398928811,1766002240611,-500.0,0.00013849,2]
[398928812,1766002240620,-500.0,0.00013849,2]
[398928813,1766002240630,-500.0,0.00013849,2]
[398928814,1766002240639,-500.0,0.00013849,2]
[398928815,1766002240648,-500.0,0.00013849,2]
[398928816,1766002240658,-500.0,0.00013849,2]
[398928817,1766002240668,-500.0,0.00013849,2]
[398928818,1766002240678,-231.19536899,0.00013849,2]
[398928819,1766002240687,-500.0,0.00013849,2]
[398928820,1766002240698,-550.52788879,0.00013849,2]
[398928821,1766002240708,-500.0,0.00013849,2]
[398928822,1766002240718,-500.0,0.00013849,2]
[398928823,1766002240727,-514.23721699,0.00013849,2]
[398928824,1766002240738,-300.0,0.00013849,2]
[398928825,1766002240747,-300.3914719,0.00013849,2]
[398928826,1766002240757,-500.0,0.00013849,2]
[398928827,1766002240766,-500.0,0.00013849,2]
[398928828,1766002240775,-500.0,0.00013849,2]
[398928829,1766002240786,-500.0,0.00013849,2]
[398928830,1766002240796,-500.0,0.00013849,2]
[398928831,1766002240805,-500.0,0.00013849,2]
[398928832,1766002240815,-500.0,0.00013849,2]
[398928833,1766002240824,-500.0,0.00013849,2]
[398928834,1766002240833,-500.0,0.00013849,2]
[398928835,1766002240844,-512.06996915,0.00013849,2]
[398928836,1766002240853,-500.0,0.00013849,2]
[398928837,1766002240863,-500.0,0.00013849,2]
[398928838,1766002240872,-500.0,0.00013849,2]
[398928839,1766002240881,-500.0,0.00013849,2]
[398928840,1766002240890,-500.0,0.00013849,2]
[398928841,1766002240900,-500.0,0.00013849,2]
[398928842,1766002240909,-517.21379875,0.00013849,2]
[398928843,1766002240918,-500.0,0.00013849,2]
[398928844,1766002240928,-500.0,0.00013849,2]
[398928845,1766002240937,-500.0,0.00013849,2]
[398928846,1766002240946,-500.0,0.00013849,2]
[398928847,1766002240955,-500.0,0.00013849,2]
[398928848,1766002240964,-18870.99957867,0.00013856,2]
[398928849,1766002240974,-300.0,0.000139,2]
[398928850,1766002240985,-500.0,0.00013921,2]
[398928851,1766002240994,-1000.0,0.00013921,2]
[398928852,1766002241003,-1000.0,0.00013921,2]
[398928853,1766002241013,-1000.0,0.00013921,2]
[398928854,1766002241022,-1000.0,0.00013921,2]
[398928855,1766002241032,-1000.0,0.00013921,2]
[398928856,1766002241041,-1000.0,0.00013921,2]
[398928857,1766002241051,-500.71124086,0.00013921,2]
[398928858,1766002241062,-1000.0,0.00013921,2]
[398928859,1766002241072,-500.0,0.00013921,2]
[398928860,1766002241081,-1000.0,0.00013921,2]
[398928861,1766002241091,-1000.0,0.00013921,2]
[398928862,1766002241100,-1000.0,0.00013921,2]
[398928863,1766002241109,-1000.0,0.00013921,2]
[398928864,1766002241118,-1477.19,0.00013921,2]
[398928865,1766002241128,-21848.83616192,0.00013966,2]
[398928866,1766002241137,-166.66,0.00013973,2]
[398928867,1766002241147,-500.0,0.00013984,2]
[398928868,1766002241158,-450.0,0.00013984,2]
[398928869,1766002241167,-500.0,0.00013984,2]
[398928870,1766002241177,-300.0,0.00013984,2]
[398928871,1766002241186,-201.81071488,0.00013984,2]
[398928872,1766002241195,-268.86787241,0.00013984,2]
[398928873,1766002241204,-150.0,0.00013984,2]
[398928874,1766002241213,-150.0,0.00013986,2]
[398928875,1766002241223,-500.0,0.00013986,2]
[398928876,1766002241232,-500.0,0.00013986,2]
[398928877,1766002241241,-300.0,0.00013988,2]
[398928878,1766002241251,-193.0,0.00013988,2]
[398928879,1766002241260,-195.0,0.00013988,2]
[398928880,1766002241269,-1680.0,0.00014001,2]
[398928881,1766002241278,-300.0,0.00014002,2]
[398928882,1766002241288,-300.0,0.00014002,2]
[398928883,1766002241296,-300.0,0.00014002,2]
[398928884,1766002241306,-300.0,0.00014002,2]
[398928885,1766002241315,-302.64270691,0.00014002,2]
[398928886,1766002241325,-300.0,0.00014002,2]
[398928887,1766002241334,-300.0,0.00014002,2]
[398928888,1766002241343,-300.0,0.00014002,2]
[398928889,1766002241352,-300.0,0.00014002,2]
[398928890,1766002241361,-250.0,0.00014002,2]
[398928891,1766002241371,-193.0,0.00014006,2]
[398928892,1766002241380,-500.0,0.00014023,2]
[398928893,1766002241389,-478.0,0.00014034,2]
[398928894,1766002241402,-380.0,0.00014062,2]
[398928895,1766002241411,-166.66,0.0001411,2]
[398928896,1766002241420,-1398.69219027,0.00014114,2]
[398928897,1766002241432,-327.88478406,0.00014121,2]
[398928898,1766002241441,-500.0,0.00014121,2]
[398928899,1766002241451,-150.0,0.00014121,2]
[398928900,1766002241459,-206.7251833,0.00014123,2]
[398928901,1766002241469,-500.0,0.00014123,2]
[398928902,1766002241478,-1477.19,0.00014195,2]
[398928903,1766002241488,-663.08167247,0.00014203,2]
[398928904,1766002241497,-18870.99957867,0.00014236,2]
[398928905,1766002241506,-166.66,0.00014247,2]
[398928906,1766002241515,-256.0,0.00014248,2]
[398928907,1766002241525,-500.0,0.00014258,2]
[398928908,1766002241535,-500.0,0.0001426,2]
[398928909,1766002241544,-424.64,0.00014266,2]
[398928910,1766002241553,-218.0,0.00014302,2]
[398928911,1766002241562,-942.0,0.00014323,2]
[398928912,1766002241571,-347.0,0.0001433,2]
[398928913,1766002241580,-21848.83616192,0.00014333,2]
[398928914,1766002241589,-948.0,0.00014351,2]
[398928915,1766002241598,-1606.0,0.0001438,2]
[398928916,1766002241607,-166.66,0.00014384,2]
[398928917,1766002241617,-200.0,0.00014389,2]
[398928918,1766002241626,-500.0,0.00014389,2]
[398928919,1766002241635,-200.0,0.00014389,2]
[398928920,1766002241645,-500.0,0.00014395,2]
[398928921,1766002241654,-294.05868298,0.00014397,2]
[398928922,1766002241663,-1477.19,0.00014468,2]
[398928923,1766002241672,-1500.0,0.00014468,2]
[398928924,1766002241681,-946.79619718,0.00014468,2]
[398928925,1766002241690,-1500.0,0.00014468,2]
[398928926,1766002241699,-1500.0,0.00014468,2]
[398928927,1766002241708,-1266.8433042,0.00014468,2]
[398928928,1766002241717,-500.98827769,0.00014468,2]
[398928929,1766002241726,-545.7565145,0.00014468,2]
[398928930,1766002241736,-255.0,0.00014481,2]
[398928931,1766002241745,-460.64,0.00014483,2]
[398928932,1766002241754,-500.0,0.00014483,2]
[398928933,1766002241763,-500.0,0.00014483,2]
[398928934,1766002241772,-500.0,0.00014483,2]
[398928935,1766002241781,-500.0,0.00014504,2]
[398928936,1766002241790,-500.0,0.00014504,2]
[398928937,1766002241799,-500.0,0.00014504,2]
[398928938,1766002241808,-500.0,0.00014504,2]
[398928939,1766002241817,-500.0,0.00014504,2]
[398928940,1766002241827,-500.0,0.00014504,2]
[398928941,1766002241836,-8570.61,0.00014504,2]
[398928942,1766002241846,-9999.99,0.00014504,2]
[398928943,1766002241855,-23607.62,0.00014504,2]
[398928944,1766002241864,-500.0,0.00014532,2]
[398928945,1766002241873,-1398.69219027,0.00014579,2]
[398928946,1766002241882,-18870.99957867,0.00014617,2]
[398928947,1766002241892,-420.0,0.00014626,2]
[398928948,1766002241901,-420.0,0.00014626,2]
[398928949,1766002241911,-663.08167247,0.00014652,2]
[398928950,1766002241920,-1200.0,0.00014658,2]
[398928951,1766002241929,-500.0,0.00014669,2]
[398928952,1766002241938,-300.0,0.00014676,2]
[398928953,1766002241947,-300.0,0.00014676,2]
[398928954,1766002241956,-250.0,0.00014676,2]
[398928955,1766002241965,-300.0,0.00014676,2]
[398928956,1766002241974,-195.0,0.00014676,2]
[398928957,1766002241984,-1260.0,0.00014693,2]
[398928958,1766002241994,-21848.83616192,0.00014699,2]
[398928959,1766002242004,-618.0,0.00014723,2]
[398928960,1766002242013,-1477.19,0.00014742,2]
[398928961,1766002242022,-1665.0,0.00014752,2]
[398928962,1766002242031,-777.0,0.00014781,2]
[398928963,1766002242041,-500.0,0.00014806,2]
[398928964,1766002242050,-500.0,0.0001481,2]
[398928965,1766002242059,-500.0,0.0001481,2]
[398928966,1766002242068,-500.0,0.0001481,2]
[398928967,1766002242077,-500.0,0.0001481,2]
[398928968,1766002242087,-645.50218631,0.0001481,2]
[398928969,1766002242096,-236.05898136,0.0001481,2]
[398928970,1766002242105,-500.0,0.0001481,2]
[398928971,1766002242114,-500.0,0.0001481,2]
[398928972,1766002242123,-500.0,0.0001481,2]
[398928973,1766002242132,-1805.0,0.00014811,2]
[398928974,1766002242141,-1375.0,0.0001484,2]
[398928975,1766002242151,-451.61703717,0.000149,2]
[398928976,1766002242160,-15170.4991,0.00014916,2]
[398928977,1766002242169,-1000.0,0.00014916,2]
[398928978,1766002242178,-200.0,0.00014937,2]
[398928979,1766002242188,-500.0,0.00014937,2]
[398928980,1766002242198,-200.0,0.00014937,2]
[398928981,1766002242210,-500.0,0.00014943,2]
[398928982,1766002242220,-18870.99957867,0.00014997,2]
[398928983,1766002242234,-500.0,0.00015006,2]
[398928984,1766002242243,-1477.19,0.00015016,2]
[398928985,1766002242255,-1893.52233492,0.00015016,2]
[398928986,1766002242265,-500.0,0.00015016,2]
[398928987,1766002242275,-1649.79191981,0.00015016,2]
[398928988,1766002242284,-1398.69219027,0.00015043,2]
[398928989,1766002242294,-21848.83616192,0.00015066,2]
[398928990,1766002242303,-150.0,0.00015068,2]
[398928991,1766002242313,-500.0,0.0001508,2]
[398928992,1766002242322,-194.58531453,0.00015205,2]
[398928993,1766002242332,-413.17870048,0.00015217,2]
[398928994,1766002242341,-150.0,0.00015288,2]
[398928995,1766002242351,-150.0,0.00015288,2]
[398928996,1766002242360,-150.0,0.00015288,2]
[398928997,1766002242369,-150.0,0.00015288,2]
[398928998,1766002242378,-150.0,0.00015288,2]
[398928999,1766002242388,-150.0,0.00015288,2]
[398929000,1766002242400,-150.0,0.00015288,2]
[398929001,1766002242410,-150.0,0.00015288,2]
[398929002,1766002242419,-150.0,0.00015288,2]
[398929003,1766002242429,-150.0,0.00015288,2]
[398929004,1766002242439,-150.0,0.00015288,2]
[398929005,1766002242448,-150.0,0.00015288,2]
[398929006,1766002242457,-150.0,0.00015288,2]
[398929007,1766002242466,-1477.19,0.0001529,2]
[398929008,1766002242477,-150.0,0.00015308,2]
[398929009,1766002242487,-150.0,0.00015314,2]
[398929010,1766002242497,-150.0,0.00015317,2]
[398929011,1766002242506,-150.0,0.00015325,2]
[398929012,1766002242516,-150.0,0.00015325,2]
[398929013,1766002242525,-150.0,0.00015327,2]
[398929014,1766002242534,-150.0,0.00015329,2]
[398929015,1766002242544,-150.0,0.0001534,2]
[398929016,1766002242553,-150.0,0.00015346,2]
[398929017,1766002242562,-150.0,0.0001535,2]
[398929018,1766002242571,-150.0,0.00015362,2]
[398929019,1766002242581,-150.0,0.00015363,2]
[398929020,1766002242590,-150.0,0.00015366,2]
[398929021,1766002242599,-150.0,0.00015367,2]
[398929022,1766002242607,-150.0,0.00015371,2]
[398929023,1766002242617,-150.0,0.00015373,2]
[398929024,1766002242625,-150.0,0.00015376,2]
[398929025,1766002242635,-18870.99957867,0.00015378,2]
[398929026,1766002242644,-150.0,0.00015391,2]
[398929027,1766002242653,-150.0,0.00015392,2]
[398929028,1766002242662,-150.0,0.00015398,2]
[398929029,1766002242671,-150.0,0.00015401,2]
[398929030,1766002242680,-2351.0,0.00015401,2]
[398929031,1766002242689,-150.0,0.00015405,2]
[398929032,1766002242698,-150.0,0.00015406,2]
[398929033,1766002242707,-150.0,0.00015409,2]
[398929035,1766002242716,-150.0,0.00015412,2]
[398929037,1766002242726,-150.0,0.00015418,2]
[398929039,1766002242735,-150.0,0.00015418,2]
[398929041,1766002242745,-188.71,0.00015421,2]
[398929042,1766002242754,-424.64,0.00015427,2]
[398929043,1766002242763,-150.0,0.00015429,2]
[398929045,1766002242772,-150.0,0.00015433,2]
[398929047,1766002242782,-21848.83616192,0.00015433,2]
[398929049,1766002242791,-150.0,0.00015434,2]
[398929050,1766002242800,-150.0,0.00015435,2]
[398929052,1766002242809,-150.0,0.00015439,2]
[398929054,1766002242818,-150.0,0.00015444,2]
[398929056,1766002242827,-150.0,0.00015446,2]
[398929057,1766002242836,-500.0,0.00015452,2]
[398929058,1766002242846,-150.0,0.00015453,2]
[398929059,1766002242856,-150.0,0.00015458,2]
[398929060,1766002242865,-150.0,0.00015463,2]
[398929061,1766002242874,-150.0,0.00015471,2]
[398929062,1766002242883,-500.0,0.00015472,2]
[398929063,1766002242892,-500.0,0.00015472,2]
[398929064,1766002242901,-500.0,0.00015472,2]
[398929065,1766002242910,-500.0,0.00015472,2]
[398929066,1766002242919,-500.0,0.00015472,2]
[398929067,1766002242929,-500.0,0.00015472,2]
[398929068,1766002242941,-500.0,0.00015472,2]
[398929069,1766002242950,-150.0,0.00015472,2]
[398929071,1766002242959,-500.0,0.00015473,2]
[398929073,1766002242968,-500.0,0.00015473,2]
[398929074,1766002242983,-270.30071685,0.00015473,2]
[398929075,1766002242995,-500.0,0.00015473,2]
[398929076,1766002243009,-530.10800238,0.00015473,2]
[398929077,1766002243018,-500.0,0.00015473,2]
[398929078,1766002243027,-500.0,0.00015473,2]
[398929079,1766002243036,-500.0,0.00015473,2]
[398929080,1766002243045,-500.0,0.00015473,2]
[398929081,1766002243054,-500.0,0.00015473,2]
[398929082,1766002243064,-500.0,0.00015473,2]
[398929083,1766002243073,-500.0,0.00015473,2]
[398929084,1766002243082,-500.0,0.00015473,2]
[398929085,1766002243091,-500.0,0.00015473,2]
[398929086,1766002243100,-500.0,0.00015473,2]
[398929087,1766002243110,-500.0,0.00015473,2]
[398929088,1766002243119,-500.0,0.00015473,2]
[398929089,1766002243128,-150.0,0.00015474,2]
[398929090,1766002243137,-150.0,0.00015476,2]
[398929091,1766002243146,-200.0,0.00015485,2]
[398929092,1766002243155,-500.0,0.00015485,2]
[398929093,1766002243164,-200.0,0.00015485,2]
[398929094,1766002243173,-150.0,0.00015485,2]
[398929095,1766002243182,-150.0,0.00015493,2]
[398929096,1766002243191,-150.0,0.00015495,2]
[398929097,1766002243201,-150.0,0.00015497,2]
[398929098,1766002243548,-1398.69219027,0.00015507,2]
[398929099,1766002243559,-150.0,0.00015509,2]
[398929100,1766002243570,-150.0,0.00015514,2]
[398929101,1766002243579,-150.0,0.00015516,2]
[398929102,1766002243588,-150.0,0.00015522,2]
[398929103,1766002243597,-150.0,0.00015523,2]
[398929104,1766002243607,-150.0,0.00015525,2]
[398929105,1766002243616,-150.0,0.0001553,2]
[398929106,1766002243625,-150.0,0.00015536,2]
[398929107,1766002243635,-152.89,0.00015542,2]
[398929108,1766002243644,-500.0,0.00015542,2]
[398929109,1766002243653,-500.0,0.00015542,2]
[398929110,1766002243662,-500.0,0.00015542,2]
[398929111,1766002243671,-1362.39,0.00015542,2]
[398929112,1766002243680,-500.0,0.00015542,2]
[398929113,1766002243690,-500.0,0.00015542,2]
[398929114,1766002243699,-150.0,0.00015542,2]
[398929115,1766002243708,-150.0,0.00015546,2]
[398929116,1766002243717,-150.0,0.00015549,2]
[398929117,1766002243726,-150.0,0.00015549,2]
[398929118,1766002243736,-150.0,0.00015551,2]
[398929119,1766002243745,-150.0,0.00015552,2]
[398929120,1766002243755,-150.0,0.00015557,2]
[398929121,1766002243764,-1477.19,0.00015564,2]
[398929122,1766002243773,-150.0,0.00015564,2]
[398929123,1766002243783,-150.0,0.00015571,2]
[398929124,1766002243792,-150.0,0.00015571,2]
[398929125,1766002243801,-150.0,0.00015575,2]
[398929126,1766002243810,-150.0,0.00015578,2]
[398929127,1766002243819,-150.0,0.00015581,2]
[398929128,1766002243828,-150.0,0.00015583,2]
[398929129,1766002243837,-150.0,0.0001559,2]
[398929130,1766002243847,-150.0,0.00015598,2]
[398929131,1766002243856,-150.0,0.00015601,2]
[398929132,1766002243866,-150.0,0.00015604,2]
[398929133,1766002243875,-150.0,0.0001561,2]
[398929134,1766002243884,-150.0,0.00015619,2]
[398929135,1766002243893,-150.0,0.0001562,2]
[398929136,1766002243902,-150.0,0.00015627,2]
[398929137,1766002243912,-150.0,0.00015627,2]
[398929138,1766002243921,-150.0,0.00015627,2]
[398929139,1766002243931,-150.0,0.00015639,2]
[398929140,1766002243940,-150.0,0.0001564,2]
[398929141,1766002243949,-150.0,0.00015643,2]
[398929142,1766002243959,-150.0,0.00015652,2]
[398929143,1766002243968,-150.0,0.00015654,2]
[398929144,1766002243977,-150.0,0.00015657,2]
[398929145,1766002243987,-150.0,0.00015661,2]
[398929146,1766002243997,-424.64,0.00015665,2]
[398929147,1766002244006,-150.0,0.00015665,2]
[398929148,1766002244015,-150.0,0.00015668,2]
[398929149,1766002244024,-150.0,0.0001568,2]
[398929150,1766002244033,-150.0,0.0001568,2]
[398929151,1766002244043,-150.0,0.00015681,2]
[398929152,1766002244052,-150.0,0.00015683,2]
[398929153,1766002244062,-433.0,0.00015685,2]
[398929154,1766002244071,-150.0,0.00015694,2]
[398929155,1766002244081,-150.0,0.00015698,2]
[398929156,1766002244091,-150.0,0.00015702,2]
[398929157,1766002244100,-150.0,0.00015703,2]
[398929158,1766002244109,-150.0,0.00015706,2]
[398929159,1766002244119,-500.0,0.00015712,2]
[398929160,1766002244127,-468.57497061,0.00015712,2]
[398929161,1766002244139,-507.58085113,0.00015712,2]
[398929162,1766002244148,-500.0,0.00015712,2]
[398929163,1766002244157,-500.0,0.00015712,2]
[398929164,1766002244167,-286.90864955,0.00015712,2]
[398929165,1766002244177,-500.0,0.00015712,2]
[398929166,1766002244186,-500.0,0.00015712,2]
[398929167,1766002244196,-500.0,0.00015712,2]
[398929168,1766002244205,-500.0,0.00015712,2]
[398929169,1766002244215,-500.0,0.00015712,2]
[398929170,1766002244224,-414.65148789,0.00015712,2]
[398929171,1766002244234,-150.0,0.00015712,2]
[398929172,1766002244243,-150.0,0.00015712,2]
[398929173,1766002244253,-150.0,0.00015722,2]
[398929174,1766002244263,-150.0,0.00015723,2]
[398929175,1766002244272,-150.0,0.00015727,2]
[398929176,1766002244282,-150.0,0.00015731,2]
[398929177,1766002244291,-150.0,0.00015732,2]
[398929178,1766002244301,-150.0,0.00015741,2]
[398929179,1766002244310,-150.0,0.00015743,2]
[398929180,1766002244320,-150.0,0.00015756,2]
[398929181,1766002244329,-150.0,0.00015758,2]
[398929182,1766002244338,-18870.99957867,0.00015758,2]
[398929183,1766002244347,-150.0,0.00015762,2]
[398929184,1766002244357,-150.0,0.00015764,2]
[398929185,1766002244367,-150.0,0.00015768,2]
[398929186,1766002244377,-150.0,0.00015773,2]
[398929187,1766002244386,-150.0,0.00015778,2]
[398929188,1766002244399,-150.0,0.00015784,2]
[398929189,1766002244409,-150.0,0.00015785,2]
[398929190,1766002244418,-150.0,0.00015786,2]
[398929191,1766002244427,-150.0,0.00015797,2]
[398929192,1766002244436,-21848.83616192,0.000158,2]
[398929193,1766002244446,-150.0,0.00015801,2]
[398929194,1766002244455,-150.0,0.00015805,2]
[398929195,1766002244465,-150.0,0.00015806,2]
[398929196,1766002244475,-150.0,0.0001581,2]
[398929197,1766002244485,-150.0,0.0001581,2]